bitfinex/quotes_SOLUSD_20251117
["timestamp","ask_amount","ask_price","bid_price","bid_amount"]
[1763372152852,0.66,141.95,141.92,3.34391633]
[1763372153056,0.66,141.95,141.92,4.03391633]
[1763372153957,103.56,141.96,141.93,4.03391633]
[1763372154836,0.66,141.95,141.91,22.6512]
[1763372155034,0.66,141.95,141.93,3.34391633]
[1763372155844,0.66,141.95,141.92,3.34391633]
[1763372156046,0.66,141.95,141.92,4.03391633]
[1763372156851,0.66,141.95,141.92,3.34391633]
[1763372157244,0.66,141.95,141.92,4.03391633]
[1763372157643,0.66,141.95,141.92,3.34391633]
[1763372158264,0.80216157,141.95,141.93,3.34391633]
[1763372159955,0.80216157,141.95,141.92,3.34391633]
[1763372160268,0.80216157,141.95,141.91,3.34391633]
[1763372160566,0.80216157,141.95,141.91,4.03391633]
[1763372160970,0.80216157,141.95,141.92,4.00391633]
[1763372161267,102.9,141.96,141.93,3.34391633]
[1763372161470,103.56,141.96,141.92,3.34391633]
[1763372161972,103.56,141.96,141.92,4.00391633]
[1763372162168,103.56,141.96,141.92,3.34391633]
[1763372162344,103.56,141.96,141.93,0.66]
[1763372163551,103.56,141.96,141.92,3.34391633]
[1763372163862,103.56,141.96,141.93,0.66]
[1763372164962,103.56,141.96,141.93,4.00391633]
[1763372166065,0.66,141.95,141.91,22.6512]
[1763372166246,103.56,141.96,141.93,4.00391633]
[1763372166446,5.9,141.95,141.93,0.66]
[1763372166663,5.9,141.95,141.94,4.00391633]
[1763372171061,6.56,141.95,141.91,6.56]
[1763372171259,0.14216157,141.97,141.9,0.2]
[1763372171260,5.9,141.94,141.93,3.34391633]
[1763372171662,5.9,141.94,141.92,0.66]
[1763372171985,5.9,141.94,141.92,4.00391633]
[1763372172281,5.9,141.94,141.93,3.34391633]
[1763372173250,5.9,141.94,141.93,4.00391633]
[1763372173669,5.9,141.94,141.93,0.66]
[1763372173879,5.9,141.94,141.93,3.34391633]
[1763372174674,5.9,141.94,141.92,4.00391633]
[1763372174980,5.9,141.94,141.93,3.34391633]
[1763372176055,5.9,141.94,141.92,0.66]
[1763372176258,5.9,141.94,141.93,3.34391633]
[1763372176453,0.14216157,141.94,141.91,22.6512]
[1763372176657,0.80216157,141.94,141.92,3.34391633]
[1763372177474,0.80216157,141.94,141.91,4.00391633]
[1763372177695,0.80216157,141.94,141.91,3.34391633]
[1763372178254,108.94216157,141.93,141.9,0.2]
[1763372178552,0.7,141.92,141.9,0.2]
[1763372178752,5.8,141.91,141.9,0.2]
[1763372179799,5.8,141.91,141.9,4.25391633]
[1763372179958,5.8,141.91,141.9,26.90511633]
[1763372180162,5.8,141.91,141.9,23.5612]
[1763372180370,5.8,141.91,141.9,3.54391633]
[1763372181174,5.8,141.91,141.9,0.2]
[1763372181502,6.5,141.91,141.9,0.2]
[1763372182771,0.7,141.91,141.9,0.2]
[1763372183210,0.14216157,141.92,141.9,0.2]
[1763372183493,0.14216157,141.92,141.9,3.54391633]
[1763372183681,0.14216157,141.92,141.9,4.25391633]
[1763372183877,102.9,141.93,141.91,4.05391633]
[1763372184470,5.8,141.92,141.91,4.05391633]
[1763372184673,5.8,141.92,141.91,3.34391633]
[1763372186199,5.8,141.92,141.9,23.5612]
[1763372186371,5.8,141.92,141.91,3.34391633]
[1763372186980,5.8,141.92,141.9,26.19511633]
[1763372187583,0.7,141.91,141.9,0.2]
[1763372189005,0.84216157,141.91,141.9,0.2]
[1763372189499,10.63098926,141.91,141.9,0.2]
[1763372191681,0.14216157,141.9,141.81,16.94]
[1763372191993,0.14216157,141.88,141.85,4.01391633]
[1763372192208,0.14216157,141.88,141.85,0.67]
[1763372192378,0.14216157,141.88,141.86,0.67]
[1763372194091,4.02391633,141.91,141.86,4.01391633]
[1763372194299,0.14216157,141.9,141.87,4.01391633]
[1763372194479,0.14216157,141.9,141.88,0.67]
[1763372195193,0.14216157,141.9,141.87,3.34391633]
[1763372195504,0.14216157,141.9,141.87,4.01391633]
[1763372196905,0.82216157,141.9,141.87,4.01391633]
[1763372197284,5.8,141.89,141.87,4.01391633]
[1763372197490,5.8,141.89,141.88,0.67]
[1763372198217,5.8,141.89,141.88,4.01391633]
[1763372198712,5.8,141.89,141.88,0.67]
[1763372199293,5.8,141.89,141.86,4.01391633]
[1763372199496,0.14216157,141.88,141.85,22.6512]
[1763372199686,5.8,141.87,141.85,26.66511633]
[1763372199890,5.8,141.87,141.86,0.67]
[1763372200100,5.8,141.87,141.85,3.34391633]
[1763372200293,5.8,141.87,141.85,4.01391633]
[1763372201191,5.8,141.87,141.86,4.01391633]
[1763372202703,5.8,141.87,141.85,22.6512]
[1763372202906,5.8,141.87,141.85,26.66511633]
[1763372203411,5.8,141.86,141.85,26.66511633]
[1763372206109,0.14216157,141.86,141.84,22.6512]
[1763372206303,0.82216157,141.86,141.84,22.6512]
[1763372206932,108.84216157,141.85,141.81,0.03]
[1763372207111,108.84216157,141.85,141.81,3.37391633]
[1763372207314,108.84216157,141.85,141.82,3.42391633]
[1763372207500,109.52216157,141.85,141.82,3.42391633]
[1763372207696,108.84216157,141.85,141.83,0.67]
[1763372207901,108.84216157,141.85,141.82,4.01391633]
[1763372208096,108.84216157,141.85,141.82,0.67]
[1763372208508,108.84216157,141.85,141.82,4.01391633]
[1763372208826,109.52216157,141.85,141.82,4.01391633]
[1763372209406,108.84216157,141.85,141.82,4.01391633]
[1763372211124,109.52216157,141.85,141.82,3.34391633]
[1763372211324,0.14216157,141.83,141.82,22.6512]
[1763372213010,0.14216157,141.83,141.82,26.12511633]
[1763372213310,9.78882769,141.84,141.82,26.12511633]
[1763372213311,0.14216157,141.84,141.82,26.12511633]
[1763372213835,0.14216157,141.84,141.82,22.7812]
[1763372214120,10.61098926,141.84,141.8,3.34391633]
[1763372214329,10.61098926,141.84,141.82,22.6512]
[1763372214830,9.93098926,141.84,141.82,22.6512]
[1763372215325,9.93098926,141.84,141.82,23.3212]
[1763372215501,10.61098926,141.84,141.82,22.6512]
[1763372215702,0.82216157,141.84,141.82,22.6512]
[1763372215902,0.14216157,141.84,141.82,23.3212]
[1763372216121,0.14216157,141.84,141.82,24.7946849]
[1763372216319,0.14216157,141.84,141.82,25.4646849]
[1763372216826,10.61098926,141.84,141.82,22.6512]
[1763372218228,9.93098926,141.84,141.82,22.6512]
[1763372218426,0.14216157,141.82,141.8,2.8134849]
[1763372218621,0.14216157,141.82,141.81,2.1434849]
[1763372218825,0.14216157,141.82,141.8,2.8134849]
[1763372219313,0.14216157,141.82,141.79,24.9946849]
[1763372219522,5.8,141.81,141.8,22.6512]
[1763372220305,5.8,141.81,141.79,0.2]
[1763372220306,15.73098926,141.8,141.79,0.2]
[1763372220531,12.75447416,141.8,141.79,0.2]
[1763372220842,15.58282841,141.8,141.79,0.2]
[1763372221039,118.43098926,141.79,141.78,0.2]
[1763372221244,9.93098926,141.78,141.77,0.2]
[1763372221553,12.07447416,141.78,141.77,0.2]
[1763372221837,12.65447416,141.78,141.77,0.2]
[1763372224440,19.70765514,141.78,141.77,0.2]
[1763372224740,21.70765514,141.78,141.77,0.2]
[1763372225440,24.53660948,141.78,141.77,0.2]
[1763372226919,22.53660948,141.78,141.77,0.2]
[1763372227112,15.4834285,141.78,141.77,0.2]
[1763372227541,22.53660948,141.78,141.77,0.2]
[1763372227739,13.3399436,141.78,141.77,0.2]
[1763372228129,15.4834285,141.78,141.77,0.2]
[1763372228630,22.53660948,141.78,141.77,0.2]
[1763372229333,15.4834285,141.78,141.77,0.2]
[1763372232042,22.53660948,141.78,141.77,0.2]
[1763372232546,5.14216157,141.71,141.7,0.9]
[1763372232722,0.14216157,141.71,141.7,0.9]
[1763372233732,0.14216157,141.71,141.7,0.2]
[1763372235024,0.14216157,141.71,141.7,0.9]
[1763372238032,9.93098926,141.71,141.7,0.2]
[1763372238453,4.7,141.69,141.68,2.1434849]
[1763372239531,4.7,141.69,141.68,11.93231259]
[1763372239871,4.7,141.69,141.68,2.8334849]
[1763372240533,4.7,141.69,141.68,12.62231259]
[1763372241230,4.7,141.69,141.68,0.69]
[1763372241430,4.7,141.69,141.68,2.8334849]
[1763372241971,3.66,141.73,141.68,34.0586245]
[1763372242130,3.66,141.73,141.72,2.1434849]
[1763372242738,3.66,141.73,141.72,2.2234849]
[1763372243133,3.66,141.73,141.72,0.08]
[1763372243333,3.66,141.73,141.71,22.6512]
[1763372243549,0.14216157,141.72,141.69,0.69]
[1763372244757,3.06,141.71,141.69,0.69]
[1763372244963,3.06,141.71,141.69,2.8334849]
[1763372245136,3.06,141.71,141.69,0.69]
[1763372245459,3.06,141.7,141.69,0.69]
[1763372245965,3.06,141.7,141.69,2.8334849]
[1763372247051,3.06,141.7,141.69,0.69]
[1763372247366,3.20216157,141.69,141.67,0.2]
[1763372247545,3.20216157,141.68,141.67,0.2]
[1763372249850,0.14216157,141.68,141.67,0.2]
[1763372250236,12.78447416,141.68,141.67,0.2]
[1763372250443,9.93098926,141.68,141.67,0.2]
[1763372251468,9.93098926,141.68,141.67,0.86]
[1763372252058,9.93098926,141.68,141.67,0.2]
[1763372253168,1.6565151,141.66,141.64,22.8512]
[1763372253374,102.9,141.67,141.65,2.1434849]
[1763372253583,103.04216157,141.67,141.66,2.1434849]
[1763372253876,103.04216157,141.67,141.66,2.8034849]
[1763372254285,102.9,141.67,141.66,2.8034849]
[1763372254463,102.9,141.67,141.66,0.66]
[1763372254970,102.9,141.67,141.66,2.8034849]
[1763372255560,102.9,141.67,141.66,0.66]
[1763372257760,102.9,141.67,141.66,2.8034849]
[1763372258161,2.2,141.68,141.66,25.4546849]
[1763372258364,2.2,141.68,141.67,2.8034849]
[1763372258973,2.2,141.68,141.67,24.02214317]
[1763372262277,2.2,141.68,141.67,2.8034849]
[1763372264588,2.2,141.68,141.67,0.04]
[1763372265077,2.2,141.68,141.66,25.4546849]
[1763372265282,2.2,141.68,141.66,0.66]
[1763372265490,2.2,141.68,141.65,22.6512]
[1763372265802,2.2,141.68,141.66,2.8034849]
[1763372266294,2.2,141.68,141.67,0.66]
[1763372267670,102.9,141.69,141.66,2.8034849]
[1763372268293,102.9,141.69,141.66,0.66]
[1763372268502,103.6,141.69,141.66,0.66]
[1763372269886,102.9,141.69,141.66,2.8034849]
[1763372270092,102.9,141.69,141.67,0.66]
[1763372270600,103.6,141.69,141.66,2.8034849]
[1763372271187,102.9,141.69,141.65,2.1434849]
[1763372271394,0.7,141.68,141.65,2.8034849]
[1763372271573,2.2,141.67,141.65,2.8034849]
[1763372271771,2.2,141.67,141.64,25.6546849]
[1763372272005,2.2,141.66,141.64,25.6546849]
[1763372272995,2.2,141.66,141.65,0.66]
[1763372273583,2.2,141.66,141.65,2.8034849]
[1763372274602,2.2,141.66,141.65,0.66]
[1763372274793,2.2,141.66,141.65,2.8034849]
[1763372275492,2.34216157,141.66,141.64,22.8512]
[1763372275799,2.2,141.65,141.64,3.0034849]
[1763372276792,2.2,141.65,141.64,4.21726636]
[1763372277680,2.2,141.65,141.64,0.86]
[1763372279403,0.84216157,141.65,141.64,0.2]
[1763372280114,10.63098926,141.65,141.64,0.2]
[1763372280285,13.98825562,141.65,141.64,0.2]
[1763372281103,18.74403686,141.65,141.64,0.2]
[1763372281488,13.98825562,141.65,141.64,0.2]
[1763372282025,10.63098926,141.65,141.64,0.2]
[1763372282190,13.98825562,141.65,141.64,0.2]
[1763372284491,25.79401793,141.65,141.64,0.2]
[1763372284696,18.73436386,141.65,141.64,0.2]
[1763372285484,13.98825562,141.65,141.64,0.2]
[1763372286917,10.63098926,141.65,141.64,0.2]
[1763372287096,13.98825562,141.65,141.64,0.2]
[1763372288623,2.0,141.6,141.59,0.66]
[1763372288924,0.14216157,141.6,141.56,26.00846636]
[1763372289097,0.14216157,141.58,141.57,22.6512]
[1763372289597,2.0,141.59,141.57,22.6512]
[1763372289797,2.14216157,141.59,141.58,0.66]
[1763372290014,2.14216157,141.59,141.57,23.3112]
[1763372290187,12.63098926,141.58,141.55,0.1]
[1763372290388,11.93098926,141.58,141.55,4.11726636]
[1763372290824,2.14216157,141.58,141.56,4.00726636]
[1763372291191,2.14216157,141.58,141.56,3.35726636]
[1763372291393,2.14216157,141.58,141.56,4.00726636]
[1763372291617,2.14216157,141.58,141.56,3.35726636]
[1763372291793,2.14216157,141.58,141.57,0.65]
[1763372292326,2.14216157,141.58,141.55,0.1]
[1763372292327,6.19942793,141.58,141.55,0.1]
[1763372292523,9.78882769,141.56,141.55,0.1]
[1763372292825,2.14216157,141.56,141.55,0.15]
[1763372293001,2.14216157,141.56,141.55,3.50726636]
[1763372293002,2.0,141.56,141.55,3.50726636]
[1763372293629,2.14216157,141.56,141.55,0.15]
[1763372293826,2.0,141.56,141.55,3.50726636]
[1763372295020,2.14216157,141.56,141.55,0.1]
[1763372295212,9.93098926,141.56,141.55,0.1]
[1763372296534,9.93098926,141.56,141.55,0.19]
[1763372296694,9.93098926,141.56,141.55,0.1]
[1763372297402,9.93098926,141.56,141.55,0.21]
[1763372297403,0.14216157,141.56,141.55,0.21]
[1763372297594,0.14216157,141.56,141.55,0.1]
[1763372298311,0.14216157,141.56,141.55,4.12726636]
[1763372298522,0.14216157,141.58,141.55,4.12726636]
[1763372298721,0.14216157,141.58,141.56,4.02726636]
[1763372298892,102.9,141.59,141.56,0.67]
[1763372299098,102.9,141.59,141.57,22.6512]
[1763372299307,102.9,141.59,141.57,26.00846636]
[1763372299516,102.9,141.59,141.57,22.6512]
[1763372299706,102.9,141.59,141.57,26.67846636]
[1763372300016,103.04216157,141.59,141.58,0.67]
[1763372300410,0.14216157,141.57,141.55,4.12726636]
[1763372301608,0.14216157,141.57,141.55,3.45726636]
[1763372301812,0.14216157,141.57,141.56,0.67]
[1763372302025,11.68882769,141.56,141.55,0.1]
[1763372302726,11.68882769,141.56,141.55,0.77]
[1763372302922,12.40882769,141.56,141.55,0.1]
[1763372303731,10.65098926,141.56,141.55,0.1]
[1763372303918,14.00825562,141.56,141.55,0.1]
[1763372304625,10.65098926,141.56,141.55,0.1]
[1763372305441,14.00825562,141.56,141.55,0.1]
[1763372306008,10.65098926,141.56,141.55,0.1]
[1763372306209,14.00825562,141.56,141.55,0.1]
[1763372306637,10.65098926,141.56,141.55,0.1]
[1763372307833,9.93098926,141.56,141.55,0.1]
[1763372308142,9.78882769,141.57,141.55,0.1]
[1763372308508,0.14216157,141.56,141.55,0.1]
[1763372308732,9.78882769,141.58,141.55,0.1]
[1763372309234,0.86216157,141.57,141.55,0.1]
[1763372310619,4.21942793,141.57,141.55,0.1]
[1763372311133,0.82216157,141.56,141.55,0.1]
[1763372311510,1.8,141.53,141.52,4.01726636]
[1763372311717,0.14216157,141.54,141.53,0.66]
[1763372312539,0.14216157,141.52,141.51,3.45726636]
[1763372312910,0.14216157,141.52,141.51,4.11726636]
[1763372313548,0.14216157,141.52,141.51,0.76]
[1763372313727,0.14216157,141.52,141.51,4.11726636]
[1763372313913,0.14216157,141.52,141.51,0.1]
[1763372314239,9.93098926,141.52,141.51,3.45726636]
[1763372314614,9.93098926,141.52,141.51,0.1]
[1763372315011,0.14216157,141.52,141.51,4.11726636]
[1763372315213,103.58,141.55,141.51,4.11726636]
[1763372315424,9.93098926,141.54,141.52,4.01726636]
[1763372315831,10.61098926,141.54,141.51,0.1]
[1763372316022,10.61098926,141.54,141.51,0.76]
[1763372317024,10.61098926,141.54,141.51,0.1]
[1763372317225,0.14216157,141.52,141.51,0.1]
[1763372317424,0.82216157,141.52,141.51,0.1]
[1763372318220,0.14216157,141.52,141.51,0.1]
[1763372318421,9.78882769,141.54,141.51,3.45726636]
[1763372318622,9.78882769,141.54,141.51,0.1]
[1763372318835,0.14216157,141.52,141.51,0.1]
[1763372319138,112.83098926,141.52,141.51,0.1]
[1763372319720,103.04216157,141.52,141.51,0.1]
[1763372319918,103.04216157,141.52,141.51,3.45726636]
[1763372320217,112.83098926,141.52,141.51,0.1]
[1763372320839,103.04216157,141.52,141.51,0.1]
[1763372321041,112.83098926,141.52,141.51,0.1]
[1763372322051,102.9,141.52,141.51,3.45726636]
[1763372322625,102.9,141.52,141.51,3.48726636]
[1763372322818,0.68,141.52,141.51,0.1]
[1763372323025,10.46882769,141.52,141.51,0.1]
[1763372323237,9.93098926,141.52,141.51,0.1]
[1763372324837,10.61098926,141.52,141.51,0.1]
[1763372327731,15.86825562,141.52,141.51,0.1]
[1763372330032,12.51098926,141.52,141.51,0.1]
[1763372330237,15.86825562,141.52,141.51,0.1]
[1763372330448,12.51098926,141.52,141.51,0.1]
[1763372332271,12.36882769,141.52,141.51,0.1]
[1763372332637,12.51098926,141.52,141.51,0.1]
[1763372333031,104.7,141.51,141.5,22.6512]
[1763372333369,104.7,141.51,141.5,26.00846636]
[1763372333535,104.7,141.51,141.5,26.66846636]
[1763372333735,104.7,141.51,141.5,47.91266846]
[1763372333930,1.8,141.51,141.5,47.91266846]
[1763372334153,1.8,141.51,141.5,44.5554021]
[1763372334453,1.8,141.51,141.5,26.66846636]
[1763372336232,1.7,141.5,141.49,24.70297295]
[1763372336460,1.7,141.5,141.49,3.45726636]
[1763372336765,1.7,141.5,141.49,26.10846636]
[1763372336947,1.7,141.5,141.49,24.90406835]
[1763372337144,1.7,141.5,141.49,25.56406835]
[1763372340940,0.14216157,141.53,141.49,25.56406835]
[1763372341164,0.14216157,141.53,141.51,2.15286835]
[1763372341672,0.14216157,141.53,141.51,2.85286835]
[1763372342856,0.14216157,141.51,141.49,22.7512]
[1763372343054,0.14216157,141.51,141.49,0.1]
[1763372343055,9.93098926,141.51,141.49,0.1]
[1763372343346,1.94216157,141.5,141.49,0.1]
[1763372344071,12.41098926,141.5,141.49,0.1]
[1763372344268,11.73098926,141.5,141.49,0.1]
[1763372344962,10.61098926,141.5,141.49,0.1]
[1763372345347,9.93098926,141.5,141.49,0.1]
[1763372347173,10.61098926,141.5,141.49,0.1]
[1763372350274,9.78882769,141.51,141.49,0.1]
[1763372350475,0.14216157,141.5,141.49,0.1]
[1763372351787,0.14216157,141.5,141.49,2.25286835]
[1763372351962,1.8,141.53,141.49,2.92286835]
[1763372352274,1.94216157,141.52,141.51,2.15286835]
[1763372352477,1.94216157,141.52,141.51,2.82286835]
[1763372353174,1.94216157,141.52,141.49,0.1]
[1763372353175,0.14216157,141.5,141.49,0.1]
[1763372353477,0.14216157,141.5,141.49,25.57406835]
[1763372353977,2.48,141.52,141.49,25.57406835]
[1763372353978,1.8,141.52,141.49,25.57406835]
[1763372354174,0.14216157,141.51,141.5,2.82286835]
[1763372356274,11.58882769,141.52,141.5,2.82286835]
[1763372356275,1.8,141.52,141.5,2.82286835]
[1763372356456,1.8,141.52,141.51,25.47406835]
[1763372358568,1.8,141.52,141.51,2.82286835]
[1763372359080,102.9,141.53,141.51,2.82286835]
[1763372359081,102.9,141.53,141.51,0.67]
[1763372359273,102.9,141.53,141.52,23.3212]
[1763372359987,102.9,141.53,141.52,25.47406835]
[1763372362772,102.9,141.53,141.52,2.82286835]
[1763372362996,102.9,141.58,141.54,22.6512]
[1763372363169,102.9,141.58,141.56,2.15286835]
[1763372363370,104.7,141.58,141.56,2.15286835]
[1763372363579,102.9,141.58,141.57,2.15286835]
[1763372364487,103.04216157,141.58,141.57,2.15286835]
[1763372365971,102.9,141.58,141.57,2.82286835]
[1763372366677,102.9,141.58,141.57,0.67]
[1763372366878,102.9,141.58,141.57,2.82286835]
[1763372369182,102.9,141.58,141.57,0.67]
[1763372370803,102.9,141.58,141.56,0.71]
[1763372373205,102.9,141.58,141.57,22.6512]
[1763372373582,102.9,141.58,141.57,23.3612]
[1763372374986,102.9,141.62,141.57,25.51406835]
[1763372375182,102.9,141.62,141.54,8.6114734]
[1763372375183,102.9,141.62,141.61,2.15286835]
[1763372375381,102.9,141.62,141.61,2.86286835]
[1763372375704,103.04216157,141.62,141.61,2.15286835]
[1763372376593,102.9,141.62,141.61,2.15286835]
[1763372376988,102.9,141.62,141.61,2.86286835]
[1763372378892,102.9,141.62,141.61,25.51406835]
[1763372379313,0.14216157,141.64,141.61,25.51406835]
[1763372379507,0.14216157,141.64,141.63,2.15286835]
[1763372384913,103.04216157,141.64,141.63,2.15286835]
[1763372386399,102.9,141.64,141.63,2.15286835]
[1763372387018,102.9,141.64,141.61,22.6512]
[1763372387220,0.14216157,141.62,141.61,0.71]
[1763372387517,0.14216157,141.62,141.61,2.15286835]
[1763372388322,0.14216157,141.62,141.6,24.80406835]
[1763372389209,0.83216157,141.62,141.6,24.80406835]
[1763372389423,0.14216157,141.62,141.6,24.80406835]
[1763372389922,0.14216157,141.62,141.6,25.51406835]
[1763372390590,1.8,141.61,141.6,25.51406835]
[1763372391727,1.8,141.61,141.6,23.3612]
[1763372392029,1.8,141.61,141.6,24.80406835]
[1763372392729,1.8,141.61,141.6,23.3612]
[1763372392900,1.94216157,141.6,141.58,2.15286835]
[1763372393101,1.94216157,141.6,141.59,2.15286835]
[1763372393102,104.7,141.6,141.59,2.15286835]
[1763372393316,0.83216157,141.63,141.59,25.51406835]
[1763372393508,0.69,141.62,141.59,23.3612]
[1763372393722,0.69,141.62,141.61,2.15286835]
[1763372394230,0.69,141.62,141.6,2.15286835]
[1763372394424,0.69,141.62,141.61,2.15286835]
[1763372394808,0.69,141.62,141.6,24.80406835]
[1763372395413,0.69,141.62,141.6,22.6512]
[1763372397136,0.69,141.62,141.6,24.80406835]
[1763372397329,0.69,141.62,141.6,22.6512]
[1763372398404,0.14216157,141.61,141.6,22.6512]
[1763372398733,0.14216157,141.61,141.59,2.15286835]
[1763372398929,0.14216157,141.61,141.59,4.06973755]
[1763372399230,0.69,141.62,141.6,3.35973755]
[1763372399430,0.83216157,141.62,141.61,3.35973755]
[1763372399613,0.83216157,141.62,141.57,25.48235688]
[1763372399817,0.83216157,141.62,141.6,3.35973755]
[1763372399818,0.14216157,141.62,141.6,3.35973755]
[1763372400210,0.14216157,141.62,141.61,3.35973755]
[1763372400410,0.83216157,141.62,141.61,3.35973755]
[1763372400611,102.9,141.63,141.61,4.04973755]
[1763372400812,103.04216157,141.63,141.62,3.35973755]
[1763372401310,102.9,141.63,141.62,4.04973755]
[1763372402906,0.14216157,141.62,141.58,4.04973755]
[1763372403121,0.14216157,141.62,141.59,4.04973755]
[1763372403336,0.14216157,141.62,141.6,3.35973755]
[1763372403511,0.14216157,141.62,141.6,26.01093755]
[1763372403512,1.94216157,141.62,141.6,26.01093755]
[1763372403937,1.94216157,141.62,141.6,22.6512]
[1763372404535,1.94216157,141.62,141.6,23.3412]
[1763372405416,1.94216157,141.62,141.6,26.70093755]
[1763372408220,1.8,141.61,141.6,26.70093755]
[1763372408838,102.9,141.63,141.6,26.70093755]
[1763372409039,102.9,141.63,141.62,3.35973755]
[1763372409653,102.9,141.63,141.62,4.04973755]
[1763372410316,102.9,141.63,141.62,0.69]
[1763372410614,102.9,141.63,141.62,23.3412]
[1763372410932,102.9,141.63,141.62,22.6512]
[1763372411813,102.9,141.63,141.62,26.01093755]
[1763372412417,102.9,141.63,141.62,26.70093755]
[1763372412740,1.8,141.64,141.62,26.70093755]
[1763372412929,0.87,141.67,141.64,22.6512]
[1763372413120,0.14216157,141.66,141.65,3.35973755]
[1763372414432,0.14216157,141.66,141.64,3.35973755]
[1763372416255,0.14216157,141.66,141.64,4.04973755]
[1763372417042,1.8,141.65,141.64,4.04973755]
[1763372419725,1.8,141.65,141.64,3.35973755]
[1763372419947,1.8,141.65,141.64,4.05973755]
[1763372421461,1.8,141.65,141.64,3.35973755]
[1763372422839,103.04216157,141.66,141.64,3.35973755]
[1763372423039,103.04216157,141.66,141.65,3.35973755]
[1763372423657,103.71216157,141.66,141.65,3.35973755]
[1763372424150,103.71216157,141.66,141.64,3.35973755]
[1763372425058,103.04216157,141.66,141.64,3.35973755]
[1763372425241,0.81216157,141.65,141.64,3.35973755]
[1763372425441,0.14216157,141.65,141.64,3.35973755]
[1763372429837,0.14216157,141.65,141.62,22.6512]
[1763372430043,0.14216157,141.65,141.64,3.35973755]
[1763372431557,0.14216157,141.65,141.64,26.01093755]
[1763372433575,103.04216157,141.66,141.65,22.6512]
[1763372433856,102.9,141.66,141.65,26.71093755]
[1763372434240,0.2,141.67,141.65,4.05973755]
[1763372434450,0.2,141.67,141.64,29.71124308]
[1763372434451,0.2,141.67,141.66,7.4194751]
[1763372434851,0.2,141.67,141.66,10.24842944]
[1763372435246,0.2,141.67,141.66,17.30758516]
[1763372439367,0.2,141.7,141.69,22.6512]
[1763372439565,0.2,141.7,141.69,26.01093755]
[1763372440066,0.2,141.7,141.69,29.53969183]
[1763372445252,0.2,141.7,141.69,2.82875428]
[1763372445467,0.87,141.7,141.69,6.18849183]
[1763372445768,0.2,141.7,141.69,6.18849183]
[1763372446275,0.2,141.7,141.69,6.88849183]
[1763372449154,2.0,141.7,141.69,6.88849183]
[1763372450574,2.0,141.7,141.69,6.18849183]
[1763372452077,2.0,141.7,141.69,6.88849183]
[1763372454077,2.0,141.7,141.69,6.18849183]
[1763372455086,0.2,141.7,141.69,6.18849183]
[1763372457390,0.2,141.7,141.69,6.88849183]
[1763372459388,0.2,141.7,141.69,6.18849183]
[1763372460382,0.2,141.7,141.69,6.88849183]
[1763372460591,0.2,141.7,141.69,6.18849183]
[1763372460774,0.2,141.7,141.69,4.97573904]
[1763372461274,0.2,141.7,141.69,5.64573904]
[1763372461691,0.2,141.7,141.69,4.97573904]
[1763372461986,0.2,141.7,141.69,2.82875428]
[1763372462219,0.88,141.7,141.68,2.14698476]
[1763372462381,0.2,141.7,141.69,2.81698476]
[1763372462557,0.2,141.7,141.69,2.14698476]
[1763372463084,0.2,141.7,141.69,23.36414236]
[1763372463589,0.88,141.7,141.69,23.36414236]
[1763372464274,0.2,141.7,141.69,23.36414236]
[1763372464694,0.88,141.7,141.69,23.36414236]
[1763372466311,0.88,141.7,141.69,21.2171576]
[1763372466480,1.02216157,141.7,141.67,2.14698476]
[1763372466680,0.68,141.69,141.67,23.36714391]
[1763372466864,2.48,141.69,141.67,23.36714391]
[1763372467261,2.62216157,141.68,141.67,21.22015915]
[1763372467488,2.62216157,141.68,141.65,2.14698476]